fUST/lending_fUST_20250228
["ID","MTS","AMOUNT","RATE_DAILY","PERIOD"]
[354817753,1740714669195,-500.0,0.00351028,120]
[354817754,1740714669205,-500.0,0.00351028,120]
[354817755,1740714669215,-500.0,0.00351028,120]
[354817756,1740714669228,-949.38,0.00351028,120]
[354817757,1740714669237,-500.0,0.00351028,120]
[354817758,1740714669247,-500.0,0.00351028,120]
[354817759,1740714669256,-500.0,0.00351028,120]
[354817760,1740714669266,-500.0,0.00351028,120]
[354817761,1740714669275,-200.0,0.0036525,120]
[354817762,1740714669285,-3314.2,0.00375583,120]
[354817763,1740714669294,-568.51,0.00375583,120]
[354817764,1740714669303,-500.0,0.00375584,120]
[354817765,1740714669313,-500.0,0.00375584,120]
[354817766,1740714669322,-572.33,0.00375584,120]
[354817767,1740714669332,-200.0,0.0038638,120]
[354817768,1740714669342,-21968.635604,0.00395203,120]
[354817769,1740714669351,-100000.0,0.004,120]
[354817770,1740714669361,-91406.3528,0.004,120]
[354817771,1740714669370,-2192.05,0.00400241,120]
[354817772,1740714669379,-1000.0,0.00400241,2]
[354817773,1740714669389,-850.23,0.00400241,120]
[354817774,1740714669399,-778.26,0.00400241,120]
[354817775,1740714669408,-999.81,0.00400241,120]
[354817776,1740714669418,-470.02493676,0.00400241,120]
[354817777,1740714669428,-500.0,0.00400241,120]
[354817778,1740714669437,-1194.28,0.00400241,120]
[354817779,1740714669447,-248.64047434,0.00400241,21]
[354817780,1740714669523,-3314.2,0.00400241,120]
[354817781,1740714669533,-568.51,0.00400241,120]
[354817782,1740714669543,-500.0,0.00400242,120]
[354817783,1740714669552,-500.0,0.00400242,120]
[354817784,1740714669562,-500.0,0.00400242,120]
[354817785,1740714669571,-500.0,0.00400242,120]
[354817786,1740714669580,-814.72,0.00400242,120]
[354817787,1740714669589,-500.0,0.00400242,120]
[354817788,1740714669598,-937.14,0.00400242,120]
[354817789,1740714669607,-500.0,0.00400242,120]
[354817790,1740714669616,-500.0,0.00400242,120]
[354817791,1740714669625,-501.77,0.00400242,120]
[354817792,1740714669635,-958.6,0.00400242,120]
[354817793,1740714669645,-667.96,0.00400242,120]
[354817794,1740714669655,-500.0,0.00400242,120]
[354817795,1740714669664,-719.94,0.00400242,120]
[354817796,1740714669672,-500.0,0.00400242,120]
[354817797,1740714669682,-500.0,0.00400242,120]
[354817798,1740714669691,-713.99,0.00400242,120]
[354817799,1740714669700,-814.71,0.00400242,120]
[354817800,1740714669710,-500.0,0.00400242,120]
[354817801,1740714669721,-952.78,0.00400242,120]
[354817802,1740714669731,-710.07,0.00400242,120]
[354817803,1740714669740,-500.0,0.00400242,120]
[354817804,1740714669750,-500.0,0.00400242,120]
[354817805,1740714669759,-1347.28,0.00400242,120]
[354817806,1740714669768,-500.0,0.00400242,120]
[354817807,1740714669777,-500.0,0.00400242,120]
[354817808,1740714669786,-615.26,0.00400242,120]
[354817809,1740714669795,-514.69002216,0.00400242,120]
[354817810,1740714669805,-598.64,0.00400242,120]
[354817811,1740714669814,-559.23,0.00400242,120]
[354817812,1740714669823,-500.0,0.00400242,120]
[354817813,1740714669832,-557.08,0.00400242,120]
[354817814,1740714669841,-598.95680893,0.00400242,120]
[354817815,1740714669851,-794.93,0.00400242,120]
[354817816,1740714669863,-500.0,0.00400242,120]
[354817817,1740714669873,-500.0,0.00400242,120]
[354817818,1740714669882,-500.0,0.00400242,120]
[354817819,1740714669891,-1280.1,0.00400242,120]
[354817820,1740714669902,-513.76113509,0.00400242,120]
[354817821,1740714669912,-500.0,0.00400242,120]
[354817822,1740714669921,-500.0,0.00400242,120]
[354817823,1740714669931,-604.44,0.00400242,120]
[354817824,1740714669943,-500.0,0.00400242,120]
[354817825,1740714669953,-820.88,0.00400242,120]
[354817826,1740714669963,-5534.98,0.00400242,120]
[354817827,1740714669974,-548.11354629,0.00400242,120]
[354817828,1740714669984,-500.0,0.00400242,120]
[354817829,1740714669994,-658.92,0.00400242,120]
[354817830,1740714670004,-210.42,0.00400242,120]
[354817831,1740714670013,-13649.77,0.00400242,7]
[354817832,1740714670023,-500.0,0.00400242,120]
[354817833,1740714670032,-500.0,0.00400242,120]
[354817834,1740714670042,-500.0,0.00400242,120]
[354817835,1740714670052,-2298.66,0.00400242,120]
[354817836,1740714670062,-760.27,0.00400242,120]
[354817837,1740714670071,-500.0,0.00400242,120]
[354817838,1740714670082,-500.0,0.00400242,120]
[354817839,1740714670092,-500.0,0.00400242,120]
[354817840,1740714670102,-500.0,0.00400242,120]
[354817841,1740714670111,-500.0,0.00400242,120]
[354817842,1740714670120,-500.0,0.00400242,120]
[354817843,1740714670130,-907.46,0.00400242,120]
[354817844,1740714670140,-597.64,0.00400242,120]
[354817845,1740714670149,-2903.54,0.00400242,120]
[354817846,1740714670159,-500.0,0.00400242,120]
[354817847,1740714670169,-9266.4,0.00400242,120]
[354817848,1740714670179,-500.0,0.00400242,120]
[354817849,1740714670188,-500.0,0.00400242,120]
[354817850,1740714670198,-500.0,0.00400242,120]
[354817851,1740714670207,-589.51221693,0.00400242,120]
[354817852,1740714670217,-4824.43,0.00400242,120]
[354817853,1740714670229,-1335.37,0.00400242,120]
[354817854,1740714670239,-718.0,0.00400242,120]
[354817855,1740714670249,-1082.86,0.00400242,120]
[354817856,1740714670259,-500.0,0.00400242,120]
[354817857,1740714670269,-991.55,0.00400242,120]
[354817858,1740714670279,-500.0,0.00400242,120]
[354817859,1740714670289,-500.0,0.00400242,120]
[354817860,1740714670299,-500.0,0.00400242,30]
[354817861,1740714670308,-500.0,0.00400242,120]
[354817862,1740714670318,-500.0,0.00400242,120]
[354817863,1740714670328,-642.81,0.00400242,120]
[354817864,1740714670337,-500.0,0.00400242,120]
[354817865,1740714670346,-500.0,0.00400242,120]
[354817866,1740714670355,-559.31,0.00400242,120]
[354817867,1740714670364,-5756.36,0.00400242,120]
[354817868,1740714670374,-500.0,0.00400242,120]
[354817869,1740714670383,-500.0,0.00400242,120]
[354817870,1740714670393,-500.0,0.00400242,120]
[354817871,1740714670402,-2151.17,0.00400242,120]
[354817872,1740714670413,-500.0,0.00400242,120]
[354817873,1740714670422,-500.0,0.00400242,120]
[354817874,1740714670433,-706.58,0.00400242,120]
[354817875,1740714670443,-500.0,0.00400242,120]
[354817876,1740714670452,-598.70807335,0.00400242,120]
[354817877,1740714670461,-220.62540027,0.00400242,120]
[354817878,1740714670473,-3902.13,0.00400242,120]
[354817879,1740714670482,-500.0,0.00400242,120]
[354817880,1740714670492,-500.0,0.00400242,120]
[354817881,1740714670501,-875.93,0.00400242,120]
[354817882,1740714670511,-583.35,0.00400242,120]
[354817883,1740714670520,-500.0,0.00400242,120]
[354817884,1740714670530,-2508.91,0.00400242,120]
[354817885,1740714670539,-9170.72,0.00400242,120]
[354817886,1740714670548,-602.01,0.00400242,120]
[354817887,1740714670558,-500.0,0.00400242,120]
[354817888,1740714670567,-77991.08,0.00400242,7]
[354817889,1740714670576,-500.0,0.00400242,120]
[354817890,1740714670586,-625.01,0.00400242,120]
[354817891,1740714670595,-500.0,0.00400242,120]
[354817892,1740714670605,-527.99,0.00400242,120]
[354817893,1740714670615,-677.29,0.00400242,120]
[354817894,1740714670624,-1965.73,0.00400242,120]
[354817895,1740714670632,-1394.69,0.00400242,120]
[354817896,1740714670641,-500.0,0.00400242,120]
[354817897,1740714670651,-500.0,0.00400242,120]
[354817898,1740714670660,-500.0,0.00400242,120]
[354817899,1740714670669,-647.17,0.00400242,120]
[354817900,1740714670678,-2544.36,0.00400242,120]
[354817901,1740714670688,-622.43,0.00400242,120]
[354817902,1740714670697,-500.0,0.00400242,120]
[354817903,1740714670707,-500.0,0.00400242,120]
[354817904,1740714670773,-500.0,0.00400242,120]
[354817905,1740714670789,-500.0,0.00400242,120]
[354817906,1740714670799,-500.0,0.00400242,120]
[354817907,1740714670809,-1215.84,0.00400242,120]
[354817908,1740714670818,-500.0,0.00400242,120]
[354817909,1740714670828,-500.0,0.00400242,120]
[354817910,1740714670837,-577.1488378,0.00400242,120]
[354817911,1740714670846,-982.74,0.00400242,120]
[354817912,1740714670859,-500.0,0.00400242,120]
[354817913,1740714670868,-500.0,0.00400242,120]
[354817914,1740714670878,-572.33,0.00400242,120]
[354817915,1740714670887,-500.0,0.00400343,120]
[354817916,1740714670898,-363.51321221,0.00400343,120]
[354817917,1740714670907,-500.0,0.00400343,120]
[354817918,1740714670917,-500.0,0.00400343,120]
[354817919,1740714670927,-313.31,0.00400343,120]
[354817920,1740714670937,-500.0,0.00400343,120]
[354817921,1740714670947,-503.99422419,0.00400343,120]
[354817922,1740714670956,-500.0,0.00400343,120]
[354817923,1740714670966,-500.0,0.00400343,120]
[354817924,1740714670976,-500.0,0.00400343,120]
[354817925,1740714670986,-500.0,0.00400343,120]
[354817926,1740714670996,-500.0,0.00400343,120]
[354817927,1740714671006,-500.0,0.00400343,120]
[354817928,1740714671015,-500.0,0.00400343,120]
[354817929,1740714671025,-500.0,0.00400343,120]
[354817930,1740714671034,-500.0,0.00400343,120]
[354817931,1740714671044,-500.0,0.00400343,120]
[354817932,1740714671053,-500.0,0.00400343,120]
[354817933,1740714671063,-500.0,0.00400343,120]
[354817934,1740714671073,-555.77,0.00400343,120]
[354817935,1740714671083,-500.0,0.00400343,120]
[354817936,1740714671093,-693.81,0.00400343,120]
[354817937,1740714671102,-500.0,0.00400343,120]
[354817938,1740714671112,-580.15,0.00400343,120]
[354817939,1740714671122,-500.0,0.00400343,120]
[354817940,1740714671131,-500.0,0.00400343,120]
[354817941,1740714671141,-500.0,0.00400343,120]
[354817942,1740714671151,-500.0,0.00400343,120]
[354817943,1740714671162,-500.0,0.00400343,120]
[354817944,1740714671173,-500.0,0.00400343,120]
[354817945,1740714671182,-527.86,0.00400343,120]
[354817946,1740714671192,-500.0,0.00400343,120]
[354817947,1740714671202,-500.0,0.00400343,120]
[354817948,1740714671211,-500.0,0.00400343,120]
[354817949,1740714671222,-500.0,0.00400343,120]
[354817950,1740714671231,-500.0,0.00400343,120]
[354817951,1740714671241,-500.0,0.00400343,120]
[354817952,1740714671250,-1497.1,0.00400343,120]
[354817953,1740714671259,-500.0,0.00400343,120]
[354817954,1740714671269,-1195.75,0.00400343,120]
[354817955,1740714671279,-1098.3,0.00400343,120]
[354817956,1740714671288,-500.0,0.00400343,120]
[354817957,1740714671298,-500.0,0.00400343,120]
[354817958,1740714671307,-537.87,0.00400343,120]
[354817959,1740714671317,-500.0,0.00400343,120]
[354817960,1740714671327,-500.0,0.00400343,120]
[354817961,1740714671336,-500.0,0.00400343,120]
[354817962,1740714671346,-500.0,0.00400343,120]
[354817963,1740714671355,-796.92,0.00400343,120]
[354817964,1740714671365,-1364.8,0.00400343,120]
[354817965,1740714671374,-500.0,0.00400343,120]
[354817966,1740714671383,-500.0,0.00400343,120]
[354817967,1740714671392,-500.0,0.00400343,120]
[354817968,1740714671401,-500.0,0.00400343,120]
[354817969,1740714671410,-500.0,0.00400343,2]
[354817970,1740714671419,-217.86306264,0.00400343,120]
[354817971,1740714671429,-500.0,0.00400343,120]
[354817972,1740714671439,-500.0,0.00400343,120]
[354817973,1740714671448,-500.0,0.00400343,120]
[354817974,1740714671458,-500.0,0.00400343,120]
[354817975,1740714671467,-520.78909895,0.00400343,120]
[354817976,1740714671478,-2066.9,0.00400343,15]
[354817977,1740714671487,-500.0,0.00400343,120]
[354817978,1740714671497,-500.0,0.00400343,120]
[354817979,1740714671506,-500.0,0.00400343,120]
[354817980,1740714671516,-553.82,0.00400343,120]
[354817981,1740714671526,-500.0,0.00400343,120]
[354817982,1740714671535,-574.15,0.00400343,120]
[354817983,1740714671544,-636.28,0.00400343,120]
[354817984,1740714671554,-500.0,0.00400343,120]
[354817985,1740714671564,-500.0,0.00400343,120]
[354817986,1740714671573,-500.0,0.00400343,120]
[354817987,1740714671583,-632.43,0.00400343,120]
[354817988,1740714671592,-404.26,0.00400343,120]
[354817989,1740714671602,-500.0,0.00400343,120]
[354817990,1740714671612,-500.0,0.00400343,120]
[354817991,1740714671621,-949.38,0.00400343,120]
[354817992,1740714671631,-500.0,0.00400343,120]
[354817993,1740714671641,-500.0,0.00400343,120]
[354817994,1740714671650,-491.70682213,0.00400343,120]
[354817995,1740714671660,-500.0,0.00400343,120]
[354817996,1740714671669,-1732.69585568,0.004008,120]
[354817997,1740714671679,-200.0,0.0040752,120]
[354817998,1740714671689,-153.0,0.00419782,120]
[354817999,1740714671698,-153.0,0.00419782,120]
[354818000,1740714671707,-153.0,0.00419782,120]
[354818001,1740714671717,-153.0,0.00419782,120]
[354818002,1740714671727,-153.0,0.00419782,120]
[354818003,1740714671736,-153.0,0.00419782,120]
[354818004,1740714671745,-153.0,0.00419782,120]
[354818005,1740714671754,-153.0,0.00420165,120]
[354818006,1740714671763,-153.0,0.00420165,120]
[354818007,1740714671772,-153.0,0.00420165,120]
[354818008,1740714671782,-153.0,0.00420165,120]
[354818009,1740714671791,-153.0,0.00420165,120]
[354818010,1740714671801,-153.0,0.00420165,120]
[354818011,1740714671810,-153.0,0.00420165,120]
[354818012,1740714671819,-153.0,0.00420165,120]
[354818013,1740714671829,-153.0,0.00420165,120]
[354818014,1740714671838,-153.0,0.00421115,120]
[354818015,1740714671847,-153.0,0.00421115,120]
[354818016,1740714671857,-153.0,0.00421115,120]
[354818017,1740714671870,-153.0,0.00421115,120]
[354818018,1740714671880,-153.0,0.00421115,120]
[354818019,1740714671948,-153.0,0.00421115,120]
[354818020,1740714671958,-153.0,0.00421115,120]
[354818021,1740714671968,-153.0,0.00421115,120]
[354818022,1740714671979,-153.0,0.00421115,120]
[354818023,1740714671988,-153.0,0.00421115,120]
[354818024,1740714671998,-153.0,0.00421115,120]
[354818025,1740714672007,-153.0,0.00421115,120]
[354818026,1740714672017,-153.0,0.00421115,120]
[354818027,1740714672026,-153.0,0.00421115,120]
[354818028,1740714672037,-153.0,0.00421115,120]
[354818029,1740714672046,-153.0,0.00421115,120]
[354818030,1740714672056,-153.0,0.00421115,120]
[354818031,1740714672066,-153.0,0.00421115,120]
[354818032,1740714672076,-153.0,0.00421115,120]
[354818033,1740714672085,-153.0,0.00421115,120]
[354818034,1740714672095,-153.0,0.00421115,120]
[354818035,1740714672104,-153.0,0.00421115,120]
[354818036,1740714672114,-153.0,0.00421115,120]
[354818037,1740714672124,-153.0,0.00421115,120]
[354818038,1740714672133,-153.0,0.00421115,120]
[354818039,1740714672143,-153.0,0.00421115,120]
[354818040,1740714672153,-153.0,0.00421115,120]
[354818041,1740714672162,-3314.2,0.00424898,120]
[354818042,1740714672172,-568.51,0.00424898,120]
[354818043,1740714672183,-500.0,0.00424899,120]
[354818044,1740714672193,-500.0,0.00424899,120]
[354818045,1740714672202,-572.33,0.00424899,120]
[354818046,1740714672212,-200.0,0.0042865,120]
[354818047,1740714672223,-54359.86,0.00429,120]
[354818048,1740714672232,-222.22,0.0043,120]
[354818049,1740714672241,-1181.57,0.0043,60]
[354818050,1740714672251,-1271.26,0.00431,120]
[354818051,1740714672260,-2192.05,0.00449556,120]
[354818052,1740714672270,-1000.0,0.00449556,2]
[354818053,1740714672280,-850.23,0.00449556,120]
[354818054,1740714672292,-778.26,0.00449556,120]
[354818055,1740714672302,-999.81,0.00449556,120]
[354818056,1740714672311,-500.0,0.00449556,120]
[354818057,1740714672323,-1194.28,0.00449556,120]
[354818058,1740714672334,-3314.2,0.00449556,120]
[354818059,1740714672344,-568.51,0.00449556,120]
[354818060,1740714672354,-500.0,0.00449557,120]
[354818061,1740714672363,-500.0,0.00449557,120]
[354818062,1740714672373,-500.0,0.00449557,120]
[354818063,1740714672382,-814.72,0.00449557,120]
[354818064,1740714672391,-500.0,0.00449557,120]
[354818065,1740714672400,-937.14,0.00449557,120]
[354818066,1740714672410,-500.0,0.00449557,120]
[354818067,1740714672420,-500.0,0.00449557,120]
[354818068,1740714672429,-501.77,0.00449557,120]
[354818069,1740714672439,-958.6,0.00449557,120]
[354818070,1740714672449,-667.96,0.00449557,120]
[354818071,1740714672458,-500.0,0.00449557,120]
[354818072,1740714672468,-719.94,0.00449557,120]
[354818073,1740714672478,-500.0,0.00449557,120]
[354818074,1740714672488,-500.0,0.00449557,120]
[354818075,1740714672498,-713.99,0.00449557,120]
[354818076,1740714672507,-814.71,0.00449557,120]
[354818077,1740714672517,-159.3611243,0.00449557,120]
[354818078,1740714672527,-952.78,0.00449557,120]
[354818079,1740714672537,-710.07,0.00449557,120]
[354818080,1740714672546,-500.0,0.00449557,120]
[354818081,1740714672555,-500.0,0.00449557,120]
[354818082,1740714672565,-1347.28,0.00449557,120]
[354818083,1740714672574,-500.0,0.00449557,120]
[354818084,1740714672584,-500.0,0.00449557,120]
[354818085,1740714672593,-615.26,0.00449557,120]
[354818086,1740714672603,-598.64,0.00449557,120]
[354818087,1740714672612,-559.23,0.00449557,120]
[354818088,1740714672621,-500.0,0.00449557,120]
[354818089,1740714672630,-557.08,0.00449557,120]
[354818090,1740714672639,-794.93,0.00449557,120]
[354818091,1740714672648,-500.0,0.00449557,120]
[354818092,1740714672657,-500.0,0.00449557,120]
[354818093,1740714672666,-500.0,0.00449557,120]
[354818094,1740714672676,-1280.1,0.00449557,120]
[354818095,1740714672686,-500.0,0.00449557,120]
[354818096,1740714672695,-500.0,0.00449557,120]
[354818097,1740714672705,-604.44,0.00449557,120]
[354818098,1740714672714,-820.88,0.00449557,120]
[354818099,1740714672726,-5534.98,0.00449557,120]
[354818100,1740714672736,-500.0,0.00449557,120]
[354818101,1740714672745,-658.92,0.00449557,120]
[354818102,1740714672754,-13649.77,0.00449557,7]
[354818103,1740714672764,-500.0,0.00449557,120]
[354818104,1740714672774,-500.0,0.00449557,120]
[354818105,1740714672784,-500.0,0.00449557,120]
[354818106,1740714672795,-2298.66,0.00449557,120]
[354818107,1740714672805,-760.27,0.00449557,120]
[354818108,1740714672815,-500.0,0.00449557,120]
[354818109,1740714672826,-500.0,0.00449557,120]
[354818110,1740714672836,-506.74,0.00449557,120]
[354818111,1740714672845,-505.23787655,0.00449557,120]
[354818112,1740714672857,-500.0,0.00449557,120]
[354818113,1740714672868,-500.0,0.00449557,120]
[354818114,1740714672878,-907.46,0.00449557,120]
[354818115,1740714672889,-597.64,0.00449557,120]
[354818116,1740714672899,-2903.54,0.00449557,120]
[354818117,1740714672911,-500.0,0.00449557,120]
[354818118,1740714672921,-9266.4,0.00449557,120]
[354818119,1740714672931,-500.0,0.00449557,120]
[354818120,1740714672941,-500.0,0.00449557,120]
[354818121,1740714672950,-500.0,0.00449557,120]
[354818122,1740714672960,-4824.43,0.00449557,120]
[354818123,1740714672970,-1335.37,0.00449557,120]
[354818124,1740714672982,-718.0,0.00449557,120]
[354818125,1740714673053,-1082.86,0.00449557,120]
[354818126,1740714673064,-500.0,0.00449557,120]
[354818127,1740714673074,-991.55,0.00449557,120]
[354818128,1740714673084,-636.93877711,0.00449557,120]
[354818129,1740714673094,-500.0,0.00449557,120]
[354818130,1740714673103,-500.0,0.00449557,30]
[354818131,1740714673113,-500.0,0.00449557,120]
[354818132,1740714673122,-500.0,0.00449557,120]
[354818133,1740714673132,-500.0,0.00449557,120]
[354818134,1740714673141,-500.0,0.00449557,120]
[354818135,1740714673151,-559.31,0.00449557,120]
[354818136,1740714673160,-5756.36,0.00449557,120]
[354818137,1740714673170,-500.0,0.00449557,120]
[354818138,1740714673179,-500.0,0.00449557,120]
[354818139,1740714673189,-500.0,0.00449557,120]
[354818140,1740714673199,-2151.17,0.00449557,120]
[354818141,1740714673208,-500.0,0.00449557,120]
[354818142,1740714673218,-500.0,0.00449557,120]
[354818143,1740714673229,-706.58,0.00449557,120]
[354818144,1740714673239,-500.0,0.00449557,120]
[354818145,1740714673248,-3902.13,0.00449557,120]
[354818146,1740714673258,-500.0,0.00449557,120]
[354818147,1740714673268,-500.0,0.00449557,120]
[354818148,1740714673278,-875.93,0.00449557,120]
[354818149,1740714673287,-583.35,0.00449557,120]
[354818150,1740714673297,-500.0,0.00449557,120]
[354818151,1740714673307,-2508.91,0.00449557,120]
[354818152,1740714673316,-9170.72,0.00449557,120]
[354818153,1740714673326,-602.01,0.00449557,120]
[354818154,1740714673336,-500.0,0.00449557,120]
[354818155,1740714673346,-77991.08,0.00449557,7]
[354818156,1740714673356,-500.0,0.00449557,120]
[354818157,1740714673366,-625.01,0.00449557,120]
[354818158,1740714673375,-500.0,0.00449557,120]
[354818159,1740714673385,-527.99,0.00449557,120]
[354818160,1740714673395,-677.29,0.00449557,120]
[354818161,1740714673405,-1965.73,0.00449557,120]
[354818162,1740714673414,-1394.69,0.00449557,120]
[354818163,1740714673423,-500.0,0.00449557,120]
[354818164,1740714673432,-500.0,0.00449557,120]
[354818165,1740714673441,-500.0,0.00449557,120]
[354818166,1740714673452,-647.17,0.00449557,120]
[354818167,1740714673461,-2544.36,0.00449557,120]
[354818168,1740714673471,-507.90142518,0.00449557,120]
[354818169,1740714673481,-622.43,0.00449557,120]
[354818170,1740714673491,-500.0,0.00449557,120]
[354818171,1740714673500,-500.0,0.00449557,120]
[354818172,1740714673510,-500.0,0.00449557,120]
[354818173,1740714673519,-1215.84,0.00449557,120]
[354818174,1740714673539,-500.0,0.00449557,120]
[354818175,1740714673556,-500.0,0.00449557,120]
[354818176,1740714673576,-982.74,0.00449557,120]
[354818177,1740714673597,-500.0,0.00449557,120]
[354818178,1740714673618,-500.0,0.00449557,120]
[354818179,1740714673636,-572.33,0.00449557,120]
[354818180,1740714673658,-500.0,0.00449658,120]
[354818181,1740714673675,-500.0,0.00449658,120]
[354818182,1740714673694,-500.0,0.00449658,120]
[354818183,1740714673715,-500.0,0.00449658,120]
[354818184,1740714673743,-500.0,0.00449658,120]
[354818185,1740714673761,-500.0,0.00449658,120]
[354818186,1740714673777,-500.0,0.00449658,120]
[354818187,1740714673797,-500.0,0.00449658,120]
[354818188,1740714673813,-500.0,0.00449658,120]
[354818189,1740714673831,-500.0,0.00449658,120]
[354818190,1740714673847,-500.0,0.00449658,120]
[354818191,1740714673867,-500.0,0.00449658,120]
[354818192,1740714673884,-500.0,0.00449658,120]
[354818193,1740714673901,-500.0,0.00449658,120]
[354818194,1740714673917,-500.0,0.00449658,120]
[354818195,1740714673932,-212.60294972,0.00449658,120]
[354818196,1740714673948,-555.77,0.00449658,120]
[354818197,1740714673964,-500.0,0.00449658,120]
[354818198,1740714673981,-693.81,0.00449658,120]
[354818199,1740714673997,-580.15,0.00449658,120]
[354818200,1740714674013,-500.0,0.00449658,120]
[354818201,1740714674028,-500.0,0.00449658,120]
[354818202,1740714674044,-500.0,0.00449658,120]
[354818203,1740714674063,-500.0,0.00449658,120]
[354818204,1740714674080,-500.0,0.00449658,120]
[354818205,1740714674096,-500.0,0.00449658,120]
[354818206,1740714674111,-527.86,0.00449658,120]
[354818207,1740714674127,-500.0,0.00449658,120]
[354818208,1740714674143,-500.0,0.00449658,120]
[354818209,1740714674158,-500.0,0.00449658,120]
[354818210,1740714674176,-500.0,0.00449658,120]
[354818211,1740714674192,-500.0,0.00449658,120]
[354818212,1740714674208,-500.0,0.00449658,120]
[354818213,1740714674224,-1497.1,0.00449658,120]
[354818214,1740714674241,-500.0,0.00449658,120]
[354818215,1740714674256,-1195.75,0.00449658,120]
[354818216,1740714674273,-1098.3,0.00449658,120]
[354818217,1740714674290,-500.0,0.00449658,120]
[354818218,1740714674305,-500.0,0.00449658,120]
[354818219,1740714674321,-537.87,0.00449658,120]
[354818220,1740714674338,-500.0,0.00449658,120]
[354818221,1740714674355,-500.0,0.00449658,120]
[354818222,1740714674459,-503.04,0.00449658,120]
[354818223,1740714674482,-500.0,0.00449658,120]
[354818224,1740714674492,-796.92,0.00449658,120]
[354818225,1740714674502,-1364.8,0.00449658,120]
[354818226,1740714674513,-417.57880445,0.00449658,120]
[354818227,1740714674525,-500.0,0.00449658,120]
[354818228,1740714674535,-500.0,0.00449658,120]
[354818229,1740714674546,-500.0,0.00449658,120]
[354818230,1740714674556,-500.0,0.00449658,2]
[354818231,1740714674567,-409.2153359,0.00449658,120]
[354818232,1740714674578,-500.0,0.00449658,120]
[354818233,1740714674589,-500.0,0.00449658,120]
[354818234,1740714674600,-500.0,0.00449658,120]
[354818235,1740714674611,-2066.9,0.00449658,15]
[354818236,1740714674621,-500.0,0.00449658,120]
[354818237,1740714674633,-500.0,0.00449658,120]
[354818238,1740714674643,-500.0,0.00449658,120]
[354818239,1740714674653,-553.82,0.00449658,120]
[354818240,1740714674663,-500.0,0.00449658,120]
[354818241,1740714674673,-574.15,0.00449658,120]
[354818242,1740714674685,-636.28,0.00449658,120]
[354818243,1740714674696,-500.0,0.00449658,120]
[354818244,1740714674707,-500.0,0.00449658,120]
[354818245,1740714674717,-500.0,0.00449658,120]
[354818246,1740714674737,-632.43,0.00449658,120]
[354818247,1740714674748,-500.0,0.00449658,120]
[354818248,1740714674760,-500.0,0.00449658,120]
[354818249,1740714674770,-949.38,0.00449658,120]
[354818250,1740714674781,-500.0,0.00449658,120]
[354818251,1740714674791,-500.0,0.00449658,120]
[354818252,1740714674802,-500.0,0.00449658,120]